[Event "Icelandic Chess-ch 2023"]
[Site "Hafnarfjordur"]
[Date "2023.05.24"]
[Round "10.6"]
[White "Heimisson, Hilmir Freyr"]
[Black "Gretarsson, Hjorvar Steinn"]
[Result "1/2-1/2"]
[ECO "C47"]
[WhiteElo "2353"]
[BlackElo "2539"]
[Annotator "TA"]
[PlyCount "173"]
[EventDate "2023.05.13"]
[EventType "tourn"]
[EventCountry "ISL"]
[SourceTitle "playchess.com"]
[Source "ChessBase"]
[SourceQuality "1"]
[TimeControl "40/5400+30:1800+30"]

{[%evp 9,172,7,15,9,19,11,18,-14,-15,-11,0,-7,0,-22,-19,0,-5,-7,8,-16,29,0,0,0,0,-11,-8,0,27,17,25,30,39,0,97,-31,94,0,0,0,0,0,0,0,87,124,109,121,120,141,249,256,264,215,317,319,304,311,312,300,296,214,201,202,428,411,409,143,142,133,134,19,26,12,26,26,26,0,1,0,5,0,0,0,12,12,12,12,12,12,12,12,12,12,12,12,12,12,12,0,12,0,12,12,12,12,12,12,12,12,68,6,6,6,7,7,7,7,7,7,7,11,12,12,12,0,0,0,0,0,0,0,0,0,0,0,0,0,0,0,0,0,0,0,0,0,0,0,0,0,0,0,0,0,0,0,0,0,0,0,0,0,0,0,0]} 1. e4 {[%emt 0:00:18]} e5 {[%emt 0:00:11]} 2. Nf3 {[%emt 0:00:17]} Nc6 {[%emt 0:00:03]} 3. Nc3 {[%emt 0:00:18]} Nf6 {[%emt 0:00:11]} 4. a3 {[%emt 0:00:07]} g6 {[%emt 0:12:25]} 5. Bc4 {[%emt 0:00:37]} Bg7 {[%emt 0:00:17][%cal Of6e4]} 6. d3 {[%emt 0:00:27] C47: Scotch Four Knights and Four Knights with 4 g3.} d6 {[%emt 0:00:54]} 7. h3 {[%emt 0:02:02]} Be6 {[%emt 0:00:42]} 8. Ng5 {[%emt 0:20:18]} Bxc4 {[%emt 0:03:19]} 9. dxc4 {[%emt 0:00:09] [#]} Nd4 $146 {[%emt 0:03:48]} ({Predecessor:} 9... h6 10. Nf3 Qd7 11. Be3 O-O 12. Qd2 Kh7 13. g4 Ng8 14. O-O-O a6 15. c5 Rfd8 {1-0 Radovanovic,N (2426)-Meier,V (2239) Landesliga Sued 1819 2018 (6.2)}) 10. Nf3 {[%emt 0:03:56]} Ne6 {[%emt 0:00:16]} 11. Qe2 {[%emt 0:03:56]} O-O {[%emt 0:08:09]} 12. Be3 {[%emt 0:04:32]} a6 {[%emt 0:02:21]} 13. O-O-O {[%emt 0:01:55][%cal Oc4c5]} Qe8 {[%emt 0:02:15][%cal Ob7b5]} 14. h4 {[%emt 0:03:40]} h5 {[%emt 0:03:16][%cal Ob7b5]} 15. Ng5 {[%emt 0:01:48]} Nd4 {[%emt 0:03:09]} 16. Bxd4 {[%emt 0:02:35]} exd4 {[%emt 0:00:05]} 17. Nd5 {[%emt 0:00:12]} Nxd5 {[%emt 0:01:18]} 18. cxd5 {[%emt 0:00:10]} Qe5 {[%emt 0:06:35]} 19. g3 {[%emt 0:03:08][%cal Bg2g3,Bg3g4,Bg4h5][%mdl 32]} c6 {[%emt 0:03:53]} 20. f4 {[%emt 0:08:18]} Qf6 {[%emt 0:00:07]} 21. Qf3 {[%emt 0:01:19]} Rac8 {[%emt 0:03:58]} (21... cxd5 $11 22. exd5 Rae8) 22. Rd3 {[%emt 0:12:19] White is more active.} (22. dxc6 $1 $16 bxc6 23. g4) 22... c5 {[%emt 0:01:39]} (22... cxd5 $15 23. Rh2 Rfe8) 23. Rhd1 {[%emt 0:00:04]} (23. g4 $1 $16) 23... Qd8 $1 $11 {[%emt 0:03:49]} 24. g4 {[%emt 0:09:04]} c4 {[%emt 0:02:24]} 25. Rxd4 {[%emt 0:00:28][%cal Og4h5]} Bxd4 {[%emt 0:01:34]} (25... hxg4 $5 26. Qxg4 c3 $17) 26. Rxd4 {[%emt 0:00:02]} c3 {[%emt 0:00:24]} 27. gxh5 $16 {[%emt 0:02:56]} cxb2+ {[%emt 0:09:50]} 28. Kxb2 {[%emt 0:00:08]} Qb6+ {[%emt 0:08:04]} 29. Rb4 {[%emt 0:00:09]} Qg1 {[%emt 0:08:06] [#]} (29... Qc5 $16 30. Qd3 a5) 30. Qd3 $1 $18 {[%emt 0:02:25]} a5 {[%emt 0:00:45]} (30... gxh5 $2 31. e5 $18 (31. Rxb7 Rb8 $11) (31. Rxb7 Rb8 $11)) 31. Rb3 {[%emt 0:01:33] hxg6 would be deadly.} Qg4 {[%emt 0:02:04]} (31... a4 $142 32. Rb4 Qg4) 32. hxg6 {[%emt 0:08:04]} (32. Rxb7 Rb8 33. Rxb8 Rxb8+ 34. Kc3 Rc8+ 35. Kb2 (35. Kb3 a4+ 36. Kb2 Qxf4 $19) 35... Rb8+ 36. Kc3 Rc8+ 37. Kb2 (37. Kb3 Rb8+ 38. Kc3 $17) 37... Rb8+ $17) 32... fxg6 {[%emt 0:00:05]} 33. Ne6 {[%emt 0:01:15]} (33. Rxb7 Qxf4 $16) 33... Rf7 {[%emt 0:01:23]} 34. Rc3 {[%emt 0:02:05]} Re8 {[%emt 0:01:21]} 35. Qg3 {[%emt 0:05:11]} Qxg3 {[%emt 0:00:57]} 36. Rxg3 {[%emt 0:00:01]} Rxe6 $2 {[%emt 0:03:57]} (36... Rf6 {was called for.} 37. h5 (37. e5 dxe5 38. fxe5 Rfxe6 $16) 37... Kh7) 37. dxe6 {[%emt 0:00:07]} Rxf4 {[%emt 0:00:04] [#]} 38. Rxg6+ $2 {[%emt 0:02:43][%mdl 4096] Endgame KR-KR} (38. e5 $1 $18 {[%cal Re5d6] is the precise move to win.} dxe5 39. h5 (39. Rxg6+ Kf8 $16)) 38... Kf8 $16 {[%emt 0:00:06]} 39. h5 {[%emt 0:00:33]} Rxe4 {[%emt 0:00:45]} 40. h6 {[%emt 0:00:10]} (40. Rg5 $16) 40... Rh4 $11 {[%emt 0:01:41]} 41. Kc3 {[%emt 0:07:02][%cal Oa3a4]} Ke7 {[%emt 0:01:52]} 42. Kd3 {[%emt 0:01:28]} b5 {[%emt 0:03:21][%cal Bb7b5,Bb5b4][%mdl 32]} 43. Ke3 {[%emt 0:06:41]} b4 {[%emt 0:05:38]} 44. a4 {[%emt 0:00:53]} Rh2 {[%emt 0:02:37]} 45. Kd3 {[%emt 0:00:32]} Rh4 {[%emt 0:00:46]} 46. Kd2 {[%emt 0:00:53]} Rh2+ {[%emt 0:00:40]} 47. Kc1 {[%emt 0:00:09]} Rh4 {[%emt 0:06:45]} 48. Kb1 {[%emt 0:01:46]} Rh2 {[%emt 0:05:07]} 49. Kb2 {[%emt 0:00:21]} Rh3 {[%emt 0:00:47]} 50. Ka2 {[%emt 0:00:17]} Rh5 {[%emt 0:06:38]} 51. Kb3 {[%emt 0:01:06]} d5 {[%emt 0:00:43]} 52. Ka2 {[%emt 0:02:22]} Rh3 {[%emt 0:01:03]} 53. Kb2 {[%emt 0:00:07]} (53. Rg7+ {simplifies} Kxe6 54. Ra7 Ke5 55. Rxa5 Rxh6 56. Rb5) 53... Rh1 {[%emt 0:00:06]} 54. Ka2 {[%emt 0:03:59]} (54. Rg7+ {simplifies} Kxe6 55. Ra7 Ke5 56. Rxa5 Rxh6 57. Rb5) 54... Rh3 {[%emt 0:00:16]} 55. Kb2 {[%emt 0:00:14]} Rh1 {[%emt 0:00:07]} 56. Rg7+ {[%emt 0:00:19]} Kxe6 {[%emt 0:00:07]} 57. Ra7 {[%emt 0:00:08]} Ke5 {[%emt 0:01:04]} 58. Rxa5 {[%emt 0:00:19] Threatens to win with Ra6.} Rxh6 {[%emt 0:00:06]} 59. Kb3 {[%emt 0:00:33]} Kd4 {[%emt 0:01:12]} (59... Rh3+ $11 60. Kxb4 Rh4+ 61. Ka3 Rh3+ 62. Kb4 Rh4+ 63. Kc3 Rh3+ 64. Kb2 Kd4) 60. Kxb4 {[%emt 0:00:21]} ({White should play} 60. Rb5 $1 $14) 60... Rc6 {[%emt 0:00:45] The position is equal.} 61. Kb3 {[%emt 0:00:51]} Rc3+ {[%emt 0:00:39]} 62. Kb2 {[%emt 0:00:01][%cal Oa5d5] Threatening mate with Rxd5+!} Rc4 {[%emt 0:01:05]} 63. Ra8 {[%emt 0:00:24]} Kc5 {[%emt 0:01:09]} 64. Kb3 {[%emt 0:01:03] Rc8+ would kill now.} Rb4+ {[%emt 0:00:41]} 65. Ka3 {[%emt 0:00:01] White threatens Rc8+ and mate.} Rh4 {[%emt 0:00:35]} 66. Rb8 {[%emt 0:00:12]} Rh1 {[%emt 0:00:13]} 67. Rb5+ {[%emt 0:00:30]} Kc4 {[%emt 0:00:07]} 68. Kb2 {[%emt 0:00:24]} d4 {[%emt 0:00:28]} 69. Rb8 {[%emt 0:00:34]} Rh2 {[%emt 0:00:10]} 70. Rd8 {[%emt 0:00:24]} Rh7 {[%emt 0:00:30]} 71. Rb8 {[%emt 0:02:01]} Rh2 {[%emt 0:00:09]} 72. Rb3 {[%emt 0:00:02]} Rh5 {[%emt 0:00:25]} 73. Rd3 {[%emt 0:00:40]} Rg5 {[%emt 0:00:19]} 74. Rb3 {[%emt 0:05:09]} Rh5 {[%emt 0:00:12]} 75. Rb7 {[%emt 0:02:54]} Rg5 {[%emt 0:00:17]} 76. Ra7 {[%emt 0:00:52]} Rg2 {[%emt 0:00:25]} 77. Rd7 {[%emt 0:01:29]} Rg5 {[%emt 0:00:08]} 78. Rc7+ {[%emt 0:01:27]} Kb4 {[%emt 0:00:08]} 79. Ra7 {[%emt 0:00:06]} Rh5 {[%emt 0:00:22]} 80. Kc1 {[%emt 0:00:31]} Kc3 {[%emt 0:01:52][%cal Rh5h1]} 81. Rc7+ {[%emt 0:00:05]} Kb4 {[%emt 0:00:07]} 82. Kd2 {[%emt 0:00:53]} Kxa4 {[%emt 0:00:11]} 83. Rb7 {[%emt 0:00:41]} Rc5 {[%emt 0:00:24]} 84. Rb3 {[%emt 0:00:39]} Rb5 {[%emt 0:00:33]} 85. Kd3 {[%emt 0:00:49]} Rxb3+ {[%emt 0:00:07]} 86. cxb3+ {[%emt 0:00:03]} Kxb3 {[%emt 0:00:07]} 87. Kxd4 {[%emt 0:00:02] White really could win this.   Weighted Error Value: White=0.20 (precise) /Black=0.24 (precise)} 1/2-1/2

[Event "Icelandic Chess-ch 2023"]
[Site "Hafnarfjordur"]
[Date "2023.05.25"]
[Round "11.1"]
[White "Gretarsson, Hjorvar Steinn"]
[Black "Ptacnikova, Lenka"]
[Result "1-0"]
[ECO "B39"]
[WhiteElo "2539"]
[BlackElo "2099"]
[Annotator "TA"]
[PlyCount "89"]
[EventDate "2023.05.13"]
[EventType "tourn"]
[EventCountry "ISL"]
[SourceTitle "playchess.com"]
[Source "ChessBase"]
[SourceQuality "1"]
[TimeControl "40/5400+30:1800+30"]

{[%evp 19,89,44,58,39,51,45,55,48,59,52,85,86,95,97,113,92,143,130,152,141,125,148,140,135,170,166,173,166,176,43,40,44,45,47,42,39,80,81,86,31,39,45,44,49,50,0,0,0,22,25,60,72,68,65,62,70,68,64,306,273,280,282,265,245,439,388,670,678,659,660,624,624]} 1. Nf3 {[%emt 0:02:59]} c5 {[%emt 0:01:06]} 2. c4 {[%emt 0:00:25]} g6 {[%emt 0:01:09]} 3. e4 {[%emt 0:02:47]} Bg7 {[%emt 0:02:30]} 4. d4 {[%emt 0:00:06]} cxd4 {[%emt 0:00:02]} 5. Nxd4 {[%emt 0:00:06]} Nc6 {[%emt 0:01:21][%cal Bb8c6,Bc6d4,Bd4e6,Be6c5][%mdl 32]} 6. Be3 {[%emt 0:00:53]} Nf6 {[%emt 0:00:41]} 7. Nc3 {[%emt 0:00:10]} Ng4 {[%emt 0:04:55]} 8. Qxg4 {[%emt 0:00:09]} Nxd4 {[%emt 0:00:06]} 9. Qd1 {[%emt 0:00:08]} Ne6 {[%emt 0:00:16]} 10. Qd2 {[%emt 0:00:23]} O-O {[%emt 0:00:25]} 11. Rc1 {[%emt 0:03:13] B39: Sicilian: Maroczy Bind with 5...Bg7 and 7...Ng4.} d6 {[%emt 0:01:32]} 12. Be2 {[%emt 0:01:08]} Nc5 {[%emt 0:01:06]} 13. f3 {[%emt 0:00:23] White is slightly better.} a5 {[%emt 0:00:36]} 14. b3 {[%emt 0:02:29] [#]} f5 $146 {[%emt 0:01:40]} ({Predecessor:} 14... Bd7 15. O-O Bc6 16. Rc2 e6 17. Rd1 Be5 18. Bf1 Qh4 19. g3 Qe7 20. Bg2 Rfd8 {1-0 Bachmann,A (2653)-Williams,J (2382) New York Int op 10th 2017 (3)}) 15. exf5 {[%emt 0:00:34]} gxf5 {[%emt 0:02:59]} 16. O-O {[%emt 0:00:55]} Kh8 {[%emt 0:01:04]} 17. Rfd1 {[%emt 0:04:20] And now Bxc5 would win.} Be6 {[%emt 0:08:25]} (17... b6 $142) 18. f4 {[%emt 0:05:48]} b6 {[%emt 0:15:06]} 19. Bf3 {[%emt 0:01:30]} Rb8 {[%emt 0:00:12]} 20. Bd4 {[%emt 0:02:49]} Rg8 {[%emt 0:03:24]} 21. Re1 {[%emt 0:00:48] White is more active.} Bxd4+ {[%emt 0:00:16]} 22. Qxd4+ {[%emt 0:00:13]} Rg7 {[%emt 0:00:03]} 23. Rc2 {[%emt 0:01:52]} Bg8 {[%emt 0:06:27]} 24. Rce2 {[%emt 0:01:40]} ({Better is} 24. Nd5 $18) 24... e5 $14 {[%emt 0:00:54]} 25. fxe5 {[%emt 0:07:34]} dxe5 {[%emt 0:00:09]} 26. Qxd8 {[%emt 0:00:59]} Rxd8 {[%emt 0:00:35]} 27. Bd5 {[%emt 0:05:18]} ({Don't play} 27. Rxe5 Nd3 28. Kf1 Nxe5 29. Rxe5 Rd2 $11) 27... Nd3 {[%emt 0:11:49] aiming for ...Bxd5.} 28. Rf1 $1 {[%emt 0:01:32]} Rg5 {[%emt 0:15:50] [#]} 29. g3 {[%emt 0:07:13]} (29. Bxg8 $1 $16 Kxg8 30. Nd5) 29... Bxd5 {[%emt 0:01:12]} 30. Nxd5 {[%emt 0:01:25]} f4 {[%emt 0:04:35] Repels Re3} 31. Rf3 {[%emt 0:01:53]} Nc5 {[%emt 0:01:43]} 32. Nxb6 {[%emt 0:07:07]} ({White should try} 32. h4 $14 e4 33. hxg5 (33. Rxf4 Rxg3+ 34. Kh2 Rg6 $16) 33... exf3 34. Rf2 fxg3 35. Rxf3) 32... Ne6 $11 {[%emt 0:01:03] Threatens to win with ...Nd4.} 33. Re1 {[%emt 0:04:44]} Nd4 {[%emt 0:01:02]} 34. Rc3 {[%emt 0:00:30]} fxg3 {[%emt 0:02:43]} 35. hxg3 {[%emt 0:00:31]} Rf8 {[%emt 0:03:17] Hoping for ...Rf3.} 36. Kg2 {[%emt 0:01:43] Inhibits Rf3.} Rgf5 {[%emt 0:00:09]} 37. Nd7 $1 $36 {[%emt 0:01:58][%csl LRe5,LRf8][%mdl 2048] White is pushing.} Rf2+ {[%emt 0:01:23]} 38. Kh3 $1 {[%emt 0:00:07]} Nf3 $2 {[%emt 0:03:36] This move loses the game for Black.} (38... R8f3 $1 $14 39. Rce3 Rxa2) 39. Nxf8 $18 {[%emt 0:01:49]} Nxe1 {[%emt 0:00:05][%mdl 4096] Endgame KRN-KRN} 40. Ne6 {[%emt 0:02:37] c5 is the strong threat.} Nf3 {[%emt 0:01:42] [#]} 41. Kg4 {[%emt 0:35:52]} Nh2+ $2 {[%emt 0:30:54]} (41... Kg8 42. Kf5 (42. Rxf3 h5+ 43. Kxh5 Rxf3 $11) 42... Kf7) 42. Kg5 {[%emt 0:01:02] Strongly threatening c5.} h6+ $2 {[%emt 0:01:21]} (42... Kg8 43. c5 Kf7) 43. Kg6 {[%emt 0:06:19] White wants to mate with Rd3. White is clearly winning.} ({Weaker is} 43. Kxh6 Rf6+ 44. Kg5 Rxe6 $16) 43... Ng4 {[%emt 0:00:44]} 44. c5 {[%emt 0:09:28] Black must now prevent c6.} Rf6+ {[%emt 0:00:00]} 45. Kh5 {[%emt 0:00:00] Weighted Error Value: White=0.11 (very precise) /Black=0.34} 1-0

[Event "Icelandic Chess-ch 2023"]
[Site "Hafnarfjordur"]
[Date "2023.05.25"]
[Round "11.2"]
[White "Stefansson, Vignir Vatnar"]
[Black "Stefansson, Hannes"]
[Result "1/2-1/2"]
[ECO "E05"]
[WhiteElo "2470"]
[BlackElo "2521"]
[Annotator "TA"]
[PlyCount "102"]
[EventDate "2023.05.13"]
[EventType "tourn"]
[EventCountry "ISL"]
[SourceTitle "playchess.com"]
[Source "ChessBase"]
[SourceQuality "1"]
[TimeControl "40/5400+30:1800+30"]

{[%evp 13,102,14,9,6,20,17,18,10,9,12,8,9,6,15,18,23,31,30,28,28,37,47,49,8,87,87,134,139,168,132,125,47,97,55,70,54,88,75,323,323,323,316,323,323,319,304,304,297,314,314,323,323,323,323,323,323,323,323,252,245,399,400,400,300,400,226,358,244,1084,1032,6179,5189,1230,621,875,984,674,587,597,203,203,50,50,50,50,50,50,50,50,50,50]} 1. d4 {[%emt 0:00:29]} Nf6 {[%emt 0:00:11]} 2. c4 {[%emt 0:00:05]} e6 {[%emt 0:00:14]} 3. g3 {[%emt 0:00:05]} d5 {[%emt 0:00:43]} 4. Bg2 {[%emt 0:00:12]} Be7 {[%emt 0:00:18]} 5. Nf3 {[%emt 0:00:07]} O-O {[%emt 0:00:15]} 6. O-O {[%emt 0:01:27]} dxc4 {[%emt 0:00:19]} 7. Qc2 {[%emt 0:01:36]} b5 {[%emt 0:02:01]} 8. a4 {[%emt 0:00:08] E05: Open Catalan: 5 Nf3 Be7.} Bb7 {[%emt 0:00:23] is cutting edge theory.} 9. axb5 {[%emt 0:00:06]} a6 {[%emt 0:00:13]} 10. bxa6 {[%emt 0:02:52] The position is equal.} (10. Qxc4 $2 axb5 11. Qxb5 Bc6 12. Rxa8 Bxb5 $19) 10... Nxa6 {[%emt 0:00:32]} 11. Qxc4 {[%emt 0:00:05]} Bd5 {[%emt 0:00:21]} 12. Qd3 {[%emt 0:01:40]} Nb4 {[%emt 0:02:53][%csl LRa1,LRd3]} 13. Rxa8 {[%emt 0:00:06]} Qxa8 {[%emt 0:00:11]} 14. Qd1 {[%emt 0:00:17]} Na2 {[%emt 0:03:57]} 15. Nc3 {[%emt 0:00:06]} Nxc3 {[%emt 0:01:37]} 16. bxc3 {[%emt 0:00:05]} c5 {[%emt 0:04:29] [#]} 17. Be3 $146 {[%emt 0:00:07]} ({Predecessor:} 17. Bg5 Rc8 18. Qa1 h6 19. Bxf6 Bxf6 20. Qxa8 Bxa8 21. e3 cxd4 22. cxd4 Bxf3 23. Bxf3 {½-½ Dubov,D (2702)-Nakamura,H (2768) Titled Tuesday intern op 06th Sep Early blitz 2022 (11)}) 17... Rc8 {[%emt 0:07:52]} 18. dxc5 {[%emt 0:18:33]} Ng4 {[%emt 0:10:14]} (18... Bxc5 $11 {remains equal.} 19. Bxc5 Rxc5) 19. Bd4 $16 {[%emt 0:01:55][%cal Oc3c4]} e5 {[%emt 0:00:19]} (19... Bxc5 $142 20. c4 Bxd4 21. cxd5 (21. Qxd4 Rxc4 22. Ra1 Qb8 $11) 21... Bxf2+ 22. Rxf2 Nxf2 23. Kxf2 Qxd5 24. Qxd5 exd5) 20. Bh3 {[%emt 0:01:38]} (20. Bxe5 $2 {perishes.} Nxe5 21. Nh4 Rxc5 $19) 20... Bxf3 {[%emt 0:05:31]} 21. exf3 {[%emt 0:00:09]} exd4 {[%emt 0:00:08]} 22. Bxg4 {[%emt 0:10:45]} ({Much less strong is} 22. fxg4 dxc3 23. Bg2 Qa5 $14) (22. cxd4 $16 Rd8 23. fxg4 (23. Bxg4 Bxc5 24. Qe2 Bxd4 $16) 23... Bxc5 24. Bg2) 22... Rxc5 {[%emt 0:04:38]} ({Better is} 22... Rd8 $1 $14) 23. Qxd4 {[%emt 0:12:36]} h5 {[%emt 0:08:53]} 24. Bh3 {[%emt 0:00:59]} (24. Re1 {is more complex.} hxg4 25. Rxe7 Qa1+ 26. Kg2) 24... Qc6 {[%emt 0:12:15]} 25. Rb1 {[%emt 0:08:19]} Rxc3 $2 {[%emt 0:04:14]} (25... Qxf3 $16 26. Bg2 Qf6) 26. Rb8+ $18 {[%emt 0:00:45]} Bf8 {[%emt 0:00:06]} 27. Rc8 {[%emt 0:03:59]} Qxc8 {[%emt 0:01:40]} 28. Bxc8 {[%emt 0:00:10]} Rxc8 {[%emt 0:00:05][%mdl 4096] Endgame KQ-KRB} 29. f4 {[%emt 0:00:31]} Rc5 {[%emt 0:03:00]} 30. Qd8 {[%emt 0:02:20]} g6 {[%emt 0:00:27]} 31. Kg2 {[%emt 0:00:54]} Rb5 {[%emt 0:03:31]} 32. h4 {[%emt 0:01:10]} Rc5 {[%emt 0:01:17]} 33. f3 {[%emt 0:03:54]} Rc2+ {[%emt 0:01:17]} 34. Kh3 {[%emt 0:00:01]} Rc3 {[%emt 0:00:24]} 35. Qa8 {[%emt 0:00:03]} Rc5 {[%emt 0:02:07]} 36. g4 {[%emt 0:04:10]} Kg7 $2 {[%emt 0:00:47]} (36... Rc3 {was worth a try.} 37. gxh5 gxh5) 37. Qa1+ {[%emt 0:03:47]} Kg8 {[%emt 0:00:18]} 38. Qd4 {[%emt 0:00:54]} Ra5 {[%emt 0:01:49]} 39. Qd8 {[%emt 0:08:04]} (39. Qd2 $142 hxg4+ 40. fxg4) 39... Rc5 {[%emt 0:00:59]} (39... hxg4+ $142 40. fxg4 Ra3+ 41. Kh2 Ra2+ 42. Kh3 Ra3+ 43. Kg2 Ra2+ 44. Kg3 Ra3+ 45. Kf2 Ra2+ 46. Ke3 Ra3+ 47. Ke2 Ra2+ 48. Kd3 Ra3+ 49. Kc2 Ra2+ 50. Kb1 Rf2) 40. Kg3 {[%emt 0:00:13]} Rb5 $2 {[%emt 0:02:35] [#]} (40... hxg4 41. fxg4 Rc3+ 42. Kf2 Rc2+ 43. Kf3 Rc3+ 44. Kg2 Rc2+ 45. Kg3 Rc3+ 46. Kf2 Rc5) 41. f5 $1 {[%emt 0:35:15]} hxg4 {[%emt 0:33:07]} (41... Rb7 42. Qd5) 42. fxg6 {[%emt 0:00:26]} fxg6 {[%emt 0:05:19]} 43. fxg4 {[%emt 0:05:58]} Rb7 {[%emt 0:01:47]} 44. Qd5+ {[%emt 0:00:00]} Rf7 {[%emt 0:00:00]} 45. h5 {[%emt 0:00:00]} gxh5 {[%emt 0:00:00]} 46. gxh5 {[%emt 0:00:00]} (46. g5 {Intending g6 and mate.} Kg7 47. Kh4) 46... Kg7 {[%emt 0:00:00] [#]} 47. h6+ $2 {[%emt 0:00:00]} Kg6 $14 {[%emt 0:00:00] [#] White is slightly better.} 48. h7 $1 {[%emt 0:03:55][%mdl 64] Decoy} Rxh7 {[%emt 0:00:00]} 49. Qg8+ {[%emt 0:00:04]} Bg7 {[%emt 0:00:00]} 50. Qe8+ {[%emt 0:00:30]} Kf6 {[%emt 0:00:00]} 51. Qd8+ {[%emt 0:00:29]} Kf7 {[%emt 0:00:00] Weighted Error Value: White=0.48/Black=0.31} 1/2-1/2

[Event "Icelandic Chess-ch 2023"]
[Site "Hafnarfjordur"]
[Date "2023.05.25"]
[Round "11.3"]
[White "Hjartarson, Johann"]
[Black "Heimisson, Hilmir Freyr"]
[Result "0-1"]
[ECO "A34"]
[WhiteElo "2466"]
[BlackElo "2353"]
[Annotator "TA"]
[PlyCount "64"]
[EventDate "2023.05.13"]
[EventType "tourn"]
[EventCountry "ISL"]
[SourceTitle "playchess.com"]
[Source "ChessBase"]
[SourceQuality "1"]
[TimeControl "40/5400+30:1800+30"]

{[%evp 9,64,14,15,6,0,0,0,0,0,0,4,-9,-23,-13,-20,-12,14,18,22,13,30,23,23,0,0,-3,-4,-196,-183,-189,-197,-191,-185,-186,-97,-373,-372,-647,-589,-650,-646,-631,-622,-589,-527,-514,-524,-520,-499,-512,-498,-1648,-1512,-1443,-1344,-1380,-1361]} 1. c4 {[%emt 0:00:03]} c5 {[%emt 0:00:13]} 2. Nf3 {[%emt 0:00:16]} Nc6 {[%emt 0:00:07]} 3. Nc3 {[%emt 0:00:10]} e5 {[%emt 0:00:12]} 4. e3 {[%emt 0:00:33]} Nf6 {[%emt 0:00:54]} 5. d4 {[%emt 0:00:09]} e4 {[%emt 0:00:07]} 6. Ne5 {[%emt 0:00:28] A34: Symmetrical English: 2 Nc3, lines with ...d5.} g6 {[%emt 0:00:21]} 7. Be2 {[%emt 0:02:27] 7.g4 injects fresh life into this line.} Bg7 {[%emt 0:16:31]} 8. O-O {[%emt 0:01:01] The position is equal.} O-O {[%emt 0:04:03]} 9. Rb1 {[%emt 0:09:55]} Qe7 {[%emt 0:11:24]} 10. Nxc6 {[%emt 0:02:02]} dxc6 {[%emt 0:01:23]} 11. b3 {[%emt 0:14:07]} cxd4 {[%emt 0:06:25]} 12. exd4 {[%emt 0:00:19] [#]} Bf5 $146 {[%emt 0:00:58][%cal Oe4e3]} ({Predecessor:} 12... Rd8 13. Be3 h5 14. Qc2 Bf5 15. Rfd1 Rac8 16. Qc1 Bg4 17. h3 Bxe2 18. Nxe2 Ne8 {0-1 Shinkevich,V (2439)-Gabrielian,A (2499) Wch Blitz St Petersburg 2018 (13)}) 13. Be3 {[%emt 0:00:15]} Rad8 {[%emt 0:00:22]} 14. Qd2 {[%emt 0:03:14]} Ng4 {[%emt 0:06:33]} 15. Bxg4 {[%emt 0:00:26]} Bxg4 {[%emt 0:01:24]} 16. Rfe1 {[%emt 0:00:42]} f5 {[%emt 0:10:49]} 17. h3 {[%emt 0:12:29]} Bh5 {[%emt 0:00:11]} 18. Rbc1 $2 {[%emt 0:22:09] [#]} (18. Bg5 $11 {and White has nothing to worry.} Bf6 19. Bxf6 Qxf6 20. d5) 18... f4 $1 $19 {[%emt 0:14:55][%mdl 576] Deflection} 19. Bxf4 {[%emt 0:00:17]} Rxd4 {[%emt 0:00:11]} 20. Qe3 {[%emt 0:00:06][%cal Rc3e4] [#]} Qf7 $1 $36 {[%emt 0:00:18][%mdl 2048] Keeping White busy.} 21. g4 {[%emt 0:07:22]} g5 {[%emt 0:06:24]} (21... Qxf4 22. Qxf4 Rxf4 23. Ne2 Bxg4 24. Nxf4 $11) (21... Bxg4 $19 22. hxg4 Qxf4 23. Qxf4 Rxf4) 22. Bg3 $2 {[%emt 0:02:13][%mdl 8192] [#]} (22. Bxg5 $2 Rd3 $19) (22. Bd6 $17 Rxd6 23. Nxe4) 22... Rd3 $1 {[%emt 0:02:58]} 23. Qc5 {[%emt 0:01:57]} (23. Qxg5 Rxg3+ 24. fxg3 Qf2+ 25. Kh1 Qxg3 $19) (23. Qe2 Bxc3 24. Rxc3 Rxc3 25. gxh5) 23... Bg6 {[%emt 0:01:41] Black is clearly winning.} ({And not} 23... Rxc3 24. gxh5 Rxc1 25. Rxc1 $15) 24. Ne2 {[%emt 0:06:06] [#]} e3 $1 {[%emt 0:01:31][%mdl 512] And now ...Qf3 would win.} 25. f4 {[%emt 0:03:22]} gxf4 {[%emt 0:03:12]} 26. Bxf4 {[%emt 0:02:07]} Rd2 {[%emt 0:03:45][%cal Od2e2]} 27. Qxe3 {[%emt 0:04:56]} Rd3 {[%emt 0:00:15][%cal Bd2d3,Bd3h3,Bh3h4][%mdl 96] Deflection} 28. Qf2 {[%emt 0:02:19]} Rxh3 {[%emt 0:01:59] ...Be4 is the strong threat.} 29. Qg2 {[%emt 0:00:14] Wards off Be4} Rh4 {[%emt 0:02:22] aiming for ...Qe6.} 30. Bg5 {[%emt 0:00:55] [#]} (30. Qg3 $142 Bd4+ {[%mdl 64] Decoy} 31. Nxd4 Qxf4 32. Qxf4 (32. Qxh4 $2 {loses.} Qxd4+ 33. Kh2 Rf2+ 34. Kh3 Qd3+ 35. Qg3 Rf3 $19) 32... Rxf4 33. Nxc6 bxc6 34. Rf1 Rfxg4+ 35. Kf2) 30... Be4 $1 {[%emt 0:02:20][%mdl 576] ( -> ...Qf2+). Deflection. A strong pair of Bishops.} 31. Rf1 {[%emt 0:00:24] Dodges Qf2+} Qe6 {[%emt 0:01:01]} ({Worse is} 31... Bxg2 32. Rxf7 Rxf7 33. Bxh4 $17) 32. Rxf8+ {[%emt 0:00:43]} Bxf8 {[%emt 0:00:06] Artfully played by Heimisson.   Weighted Error Value: White=0.67/Black=0.12 (very precise)} 0-1